[Event "Early-Titled-Tuesday-Blitz-February-13-2024"]
[Site "Chess.com"]
[Date "2024.02.13"]
[Round "6"]
[White "TigrVShlyape"]
[Black "HansOnTwitch"]
[Result "0-1"]
[WhiteElo "2863"]
[BlackElo "3162"]
[TimeControl "180+1"]
[EndTime "9:09:52 PST"]
[Termination "HansOnTwitch won on time"]

1. d4 {[%clk 0:03:00.9]} 1... Nf6 {[%clk 0:02:59.9]} 2. Bf4 {[%clk 0:03:00.8]}
2... d5 {[%clk 0:02:53.5]} 3. e3 {[%clk 0:03:00.8]} 3... e6 {[%clk 0:02:47.7]}
4. Nf3 {[%clk 0:02:58.9]} 4... Bd6 {[%clk 0:02:46]} 5. Bxd6 {[%clk 0:02:56.6]}
5... cxd6 {[%clk 0:02:42.5]} 6. c4 {[%clk 0:02:55.6]} 6... dxc4 {[%clk
0:02:42.1]} 7. Bxc4 {[%clk 0:02:55.2]} 7... Bd7 {[%clk 0:02:41.7]} 8. O-O {[%clk
0:02:53.6]} 8... Bc6 {[%clk 0:02:42]} 9. Nc3 {[%clk 0:02:51]} 9... Qa5 {[%clk
0:02:33.5]} 10. d5 {[%clk 0:02:35.7]} 10... exd5 {[%clk 0:02:25.8]} 11. Be2
{[%clk 0:02:19.6]} 11... O-O {[%clk 0:02:15.3]} 12. a3 {[%clk 0:02:18.9]} 12...
Qd8 {[%clk 0:02:13.9]} 13. b4 {[%clk 0:02:18.4]} 13... b6 {[%clk 0:01:53.2]} 14.
Nd4 {[%clk 0:02:13.1]} 14... Bb7 {[%clk 0:01:52.5]} 15. Rc1 {[%clk 0:02:08.4]}
15... Nbd7 {[%clk 0:01:29.6]} 16. Ncb5 {[%clk 0:02:01.7]} 16... Ne5 {[%clk
0:01:28.3]} 17. Nf5 {[%clk 0:01:51.2]} 17... Ne4 {[%clk 0:01:11.2]} 18. f3
{[%clk 0:01:30.5]} 18... a6 {[%clk 0:01:10.5]} 19. Nbd4 {[%clk 0:01:19.7]} 19...
Nf6 {[%clk 0:01:09.3]} 20. Qe1 {[%clk 0:01:18]} 20... g6 {[%clk 0:01:07.2]} 21.
Qg3 {[%clk 0:00:41.8]} 21... Kh8 {[%clk 0:01:05.1]} 22. Nh6 {[%clk 0:00:22.4]}
22... b5 {[%clk 0:01:04]} 23. Ng4 {[%clk 0:00:15.9]} 23... Nc4 {[%clk
0:00:57.9]} 24. Qf4 {[%clk 0:00:13.6]} 24... Nxg4 {[%clk 0:00:54.7]} 25. fxg4
{[%clk 0:00:13.6]} 25... Qe7 {[%clk 0:00:41.8]} 26. Rc3 {[%clk 0:00:13.1]} 26...
Rae8 {[%clk 0:00:37.7]} 27. Rf3 {[%clk 0:00:12.6]} 27... Qe5 {[%clk 0:00:33.5]}
28. Qh6 {[%clk 0:00:11.2]} 28... Qg7 {[%clk 0:00:33.7]} 29. Qxg7+ {[%clk
0:00:11]} 29... Kxg7 {[%clk 0:00:33.9]} 30. g5 {[%clk 0:00:11.4]} 30... Re5
{[%clk 0:00:28.3]} 31. Rg3 {[%clk 0:00:10]} 31... Rfe8 {[%clk 0:00:28.2]} 32.
Kf2 {[%clk 0:00:10.2]} 32... Bc8 {[%clk 0:00:24.3]} 33. h4 {[%clk 0:00:09.7]}
33... Bd7 {[%clk 0:00:23.7]} 34. Bf1 {[%clk 0:00:05.4]} 34... Re4 {[%clk
0:00:22.7]} 0-1

[Event "Early-Titled-Tuesday-Blitz-February-13-2024"]
[Site "Chess.com"]
[Date "2024.02.13"]
[Round "6"]
[White "Mikhail_Golubev"]
[Black "ural58"]
[Result "0-1"]
[WhiteElo "2675"]
[BlackElo "2518"]
[TimeControl "180+1"]
[EndTime "9:09:52 PST"]
[Termination "ural58 won on time"]

1. e4 {[%clk 0:02:26.8]} 1... d5 {[%clk 0:02:46.6]} 2. exd5 {[%clk 0:02:26.4]}
2... Qxd5 {[%clk 0:02:44.5]} 3. Nc3 {[%clk 0:02:26.4]} 3... Qd6 {[%clk
0:02:43.6]} 4. Nf3 {[%clk 0:02:20.9]} 4... c6 {[%clk 0:02:41.7]} 5. d4 {[%clk
0:02:19]} 5... Bf5 {[%clk 0:02:38.6]} 6. g3 {[%clk 0:02:16.6]} 6... e6 {[%clk
0:02:35.5]} 7. Bg2 {[%clk 0:02:16.2]} 7... Nf6 {[%clk 0:02:33.8]} 8. O-O {[%clk
0:02:14.6]} 8... Be7 {[%clk 0:02:33.2]} 9. Bf4 {[%clk 0:02:01]} 9... Qd8 {[%clk
0:02:30.9]} 10. Re1 {[%clk 0:01:50.4]} 10... O-O {[%clk 0:02:29.9]} 11. Qd2
{[%clk 0:01:46.8]} 11... Nbd7 {[%clk 0:02:28.4]} 12. Rad1 {[%clk 0:01:43.9]}
12... Nb6 {[%clk 0:02:27.7]} 13. Ne5 {[%clk 0:01:36.1]} 13... Nfd5 {[%clk
0:02:23.5]} 14. Nxd5 {[%clk 0:01:27.5]} 14... cxd5 {[%clk 0:02:22.9]} 15. g4
{[%clk 0:01:19.5]} 15... Bg6 {[%clk 0:02:18.9]} 16. Nxg6 {[%clk 0:01:18.6]}
16... hxg6 {[%clk 0:02:18.3]} 17. b3 {[%clk 0:01:10.4]} 17... Rc8 {[%clk
0:02:16.1]} 18. g5 {[%clk 0:00:56.3]} 18... Bd6 {[%clk 0:02:14.6]} 19. Bg3
{[%clk 0:00:46.4]} 19... Bxg3 {[%clk 0:02:11.8]} 20. hxg3 {[%clk 0:00:46.2]}
20... Qc7 {[%clk 0:02:11.2]} 21. Rc1 {[%clk 0:00:40.7]} 21... Qc3 {[%clk
0:02:07.8]} 22. Qf4 {[%clk 0:00:40.3]} 22... Nd7 {[%clk 0:02:05]} 23. Bf3 {[%clk
0:00:40.4]} 23... Qb2 {[%clk 0:01:58.7]} 24. c4 {[%clk 0:00:32.2]} 24... dxc4
{[%clk 0:01:55.3]} 25. bxc4 {[%clk 0:00:31.6]} 25... Qxa2 {[%clk 0:01:54.3]} 26.
c5 {[%clk 0:00:25.7]} 26... e5 {[%clk 0:01:49.3]} 27. Qg4 {[%clk 0:00:25.2]}
27... Qa4 {[%clk 0:01:42.1]} 28. Bxb7 {[%clk 0:00:23.7]} 28... Rxc5 {[%clk
0:01:42.3]} 29. Rcd1 {[%clk 0:00:05.9]} 29... Rc4 {[%clk 0:01:36.3]} 30. Kg2
{[%clk 0:00:05.6]} 30... Rxd4 {[%clk 0:01:35.6]} 31. Rxd4 {[%clk 0:00:05.6]}
31... Qxd4 {[%clk 0:01:35.4]} 32. Re4 {[%clk 0:00:05.8]} 32... Qd6 {[%clk
0:01:34.5]} 33. Qh3 {[%clk 0:00:05.3]} 33... f5 {[%clk 0:01:30.2]} 34. gxf6
{[%clk 0:00:05.2]} 34... Nxf6 {[%clk 0:01:29.7]} 35. Rh4 {[%clk 0:00:05.3]}
35... g5 {[%clk 0:01:22.8]} 36. Rh8+ {[%clk 0:00:04.2]} 36... Kf7 {[%clk
0:01:23.4]} 37. Rxf8+ {[%clk 0:00:04.2]} 37... Qxf8 {[%clk 0:01:21.6]} 38. Qf5
{[%clk 0:00:03.5]} 38... Qd6 {[%clk 0:01:21]} 39. Qxg5 {[%clk 0:00:03.6]} 39...
a5 {[%clk 0:01:21]} 40. Qf5 {[%clk 0:00:03.4]} 40... a4 {[%clk 0:01:20.5]} 41.
Qc2 {[%clk 0:00:03.2]} 41... a3 {[%clk 0:01:16.3]} 42. Qb3+ {[%clk 0:00:02.6]}
42... Ke7 {[%clk 0:01:16.6]} 43. Bf3 {[%clk 0:00:01.7]} 43... Nd7 {[%clk
0:01:16.4]} 44. Bh5 {[%clk 0:00:01.1]} 44... g6 {[%clk 0:01:12.4]} 45. Bxg6
{[%clk 0:00:01.2]} 45... Qxg6 {[%clk 0:01:12]} 46. Qxa3+ {[%clk 0:00:01.8]}
46... Qd6 {[%clk 0:01:12.6]} 47. Qf3 {[%clk 0:00:02.3]} 47... Qf6 {[%clk
0:01:11]} 48. Qe4 {[%clk 0:00:02.3]} 48... Nc5 {[%clk 0:01:09.3]} 49. Qd5 {[%clk
0:00:01.6]} 49... Qd6 {[%clk 0:01:09.6]} 0-1

[Event "Early-Titled-Tuesday-Blitz-February-13-2024"]
[Site "Chess.com"]
[Date "2024.02.13"]
[Round "6"]
[White "DenizG123"]
[Black "ChessFanNM"]
[Result "0-1"]
[WhiteElo "2115"]
[BlackElo "2305"]
[TimeControl "180+1"]
[EndTime "9:09:53 PST"]
[Termination "ChessFanNM won by resignation"]

1. e4 {[%clk 0:02:56.3]} 1... c6 {[%clk 0:02:45]} 2. d4 {[%clk 0:02:50.9]} 2...
d5 {[%clk 0:02:45]} 3. e5 {[%clk 0:02:51.5]} 3... Bf5 {[%clk 0:02:41.6]} 4. Nf3
{[%clk 0:02:51.2]} 4... e6 {[%clk 0:02:41.3]} 5. Be2 {[%clk 0:02:51.1]} 5... Nd7
{[%clk 0:02:41.1]} 6. O-O {[%clk 0:02:48.3]} 6... h6 {[%clk 0:02:29.5]} 7. a4
{[%clk 0:02:34.5]} 7... a6 {[%clk 0:02:27.5]} 8. a5 {[%clk 0:02:30.1]} 8... c5
{[%clk 0:02:24.1]} 9. c3 {[%clk 0:02:18.7]} 9... Bh7 {[%clk 0:02:23.2]} 10. dxc5
{[%clk 0:01:30.3]} 10... Bxc5 {[%clk 0:02:22.3]} 11. b4 {[%clk 0:01:30.1]} 11...
Ba7 {[%clk 0:02:16.2]} 12. b5 {[%clk 0:00:59.8]} 12... axb5 {[%clk 0:02:13.4]}
13. Bxb5 {[%clk 0:00:59.1]} 13... Ne7 {[%clk 0:02:12]} 14. Qa4 {[%clk
0:00:55.8]} 14... Rc8 {[%clk 0:02:03.1]} 15. Ba3 {[%clk 0:00:47]} 15... Nc6
{[%clk 0:02:00.1]} 16. a6 {[%clk 0:00:39.7]} 16... bxa6 {[%clk 0:01:52.8]} 17.
Bxc6 {[%clk 0:00:37.8]} 17... Qc7 {[%clk 0:01:50.4]} 18. Qb4 {[%clk 0:00:31.1]}
18... Qd8 {[%clk 0:01:36.2]} 19. Ba4 {[%clk 0:00:29]} 19... Bc5 {[%clk
0:01:31.8]} 20. Qg4 {[%clk 0:00:16.8]} 20... O-O {[%clk 0:01:24.6]} 21. Bxd7
{[%clk 0:00:15.5]} 21... Qxd7 {[%clk 0:01:21.8]} 22. Bxc5 {[%clk 0:00:15.8]}
22... Rxc5 {[%clk 0:01:21.8]} 23. Rc1 {[%clk 0:00:15.6]} 23... a5 {[%clk
0:01:21]} 24. Nbd2 {[%clk 0:00:15.3]} 24... Rfc8 {[%clk 0:01:20.4]} 25. Nb3
{[%clk 0:00:11.1]} 25... Rc4 {[%clk 0:01:18.8]} 26. Qg3 {[%clk 0:00:09.9]} 26...
a4 {[%clk 0:01:18.4]} 27. Nbd4 {[%clk 0:00:09.8]} 27... Rxc3 {[%clk 0:01:16.4]}
28. Rxc3 {[%clk 0:00:09.1]} 28... Rxc3 {[%clk 0:01:16.4]} 29. h3 {[%clk
0:00:09.3]} 29... Be4 {[%clk 0:01:15.6]} 30. Qf4 {[%clk 0:00:09.1]} 30... a3
{[%clk 0:01:14.4]} 31. Qd2 {[%clk 0:00:08.5]} 31... Qc8 {[%clk 0:01:07.2]} 32.
Qa2 {[%clk 0:00:06.2]} 32... Qc5 {[%clk 0:01:03.4]} 33. Kh2 {[%clk 0:00:04.4]}
33... Bxf3 {[%clk 0:00:58.1]} 34. Nxf3 {[%clk 0:00:03.8]} 34... g5 {[%clk
0:00:55.9]} 35. Qe2 {[%clk 0:00:03.4]} 35... Rc2 {[%clk 0:00:53.3]} 36. Qe3
{[%clk 0:00:03.2]} 36... d4 {[%clk 0:00:44.9]} 37. Qxd4 {[%clk 0:00:03]} 37...
Qa5 {[%clk 0:00:37.7]} 38. Qd8+ {[%clk 0:00:02.3]} 38... Qxd8 {[%clk 0:00:37.3]}
0-1

[Event "Early-Titled-Tuesday-Blitz-February-13-2024"]
[Site "Chess.com"]
[Date "2024.02.13"]
[Round "6"]
[White "kleinebeer98"]
[Black "Bigfish1995"]
[Result "1-0"]
[WhiteElo "2868"]
[BlackElo "3159"]
[TimeControl "180+1"]
[EndTime "9:09:54 PST"]
[Termination "kleinebeer98 won on time"]

1. e4 {[%clk 0:03:00.9]} 1... c6 {[%clk 0:02:53.4]} 2. d4 {[%clk 0:03:00.9]}
2... d5 {[%clk 0:02:53.7]} 3. f3 {[%clk 0:03:01.2]} 3... Qb6 {[%clk 0:02:51.9]}
4. Nc3 {[%clk 0:03:00.4]} 4... dxe4 {[%clk 0:02:51.9]} 5. Bc4 {[%clk 0:03:00.4]}
5... Nf6 {[%clk 0:02:37.5]} 6. fxe4 {[%clk 0:03:00.3]} 6... e5 {[%clk
0:02:37.3]} 7. dxe5 {[%clk 0:03:01.2]} 7... Ng4 {[%clk 0:02:34.6]} 8. Qe2 {[%clk
0:03:01.9]} 8... Nxe5 {[%clk 0:02:33.9]} 9. Bb3 {[%clk 0:03:02.7]} 9... Bg4
{[%clk 0:02:28.5]} 10. Nf3 {[%clk 0:03:03]} 10... Nbd7 {[%clk 0:02:28.4]} 11.
Bd2 {[%clk 0:03:02.7]} 11... O-O-O {[%clk 0:02:10.8]} 12. O-O-O {[%clk
0:03:01.9]} 12... Be7 {[%clk 0:02:09.3]} 13. Kb1 {[%clk 0:02:56.8]} 13... Qc7
{[%clk 0:01:43]} 14. Qf1 {[%clk 0:02:44.2]} 14... Rhf8 {[%clk 0:01:38.6]} 15. h3
{[%clk 0:02:41.8]} 15... Be6 {[%clk 0:01:28.5]} 16. Bf4 {[%clk 0:02:27]} 16...
Bxb3 {[%clk 0:01:17]} 17. cxb3 {[%clk 0:02:16.7]} 17... f6 {[%clk 0:01:07.6]}
18. Nd4 {[%clk 0:02:12.1]} 18... Nc5 {[%clk 0:00:57.6]} 19. b4 {[%clk
0:02:12.1]} 19... Rxd4 {[%clk 0:00:56.5]} 20. Rxd4 {[%clk 0:02:13]} 20... Ne6
{[%clk 0:00:56.3]} 21. Rd1 {[%clk 0:02:03.5]} 21... Bxb4 {[%clk 0:00:54.7]} 22.
Rc1 {[%clk 0:01:58.6]} 22... Nxf4 {[%clk 0:00:46.3]} 23. Qxf4 {[%clk 0:01:58.6]}
23... Bxc3 {[%clk 0:00:47.2]} 24. Rxc3 {[%clk 0:01:58.3]} 24... Rd8 {[%clk
0:00:47.9]} 25. Rhc1 {[%clk 0:01:45]} 25... h6 {[%clk 0:00:45.4]} 26. Qe3 {[%clk
0:01:41.5]} 26... Rd6 {[%clk 0:00:43.7]} 27. Qxa7 {[%clk 0:01:41.1]} 27... Qb8
{[%clk 0:00:36.3]} 28. Qe3 {[%clk 0:01:38.1]} 28... Qc7 {[%clk 0:00:35.5]} 29.
Ra3 {[%clk 0:01:37.4]} 29... Kd7 {[%clk 0:00:33.2]} 30. Qb3 {[%clk 0:01:29.8]}
30... Qc8 {[%clk 0:00:15.4]} 31. Ra7 {[%clk 0:01:29.9]} 31... Kc7 {[%clk
0:00:16.1]} 32. Qa3 {[%clk 0:01:25.5]} 32... Rd3 {[%clk 0:00:15.1]} 33. Qa5+
{[%clk 0:01:23]} 33... Kd6 {[%clk 0:00:15.7]} 34. Ra8 {[%clk 0:01:12.8]} 34...
Qc7 {[%clk 0:00:15.7]} 35. Qc5+ {[%clk 0:00:52.9]} 35... Ke6 {[%clk 0:00:14.2]}
36. Qf8 {[%clk 0:00:53.6]} 36... Rd7 {[%clk 0:00:08.9]} 37. Re8+ {[%clk
0:00:50.1]} 37... Re7 {[%clk 0:00:09.3]} 38. Qg8+ {[%clk 0:00:50.8]} 38... Kd6
{[%clk 0:00:08.8]} 39. Rd8+ {[%clk 0:00:48.7]} 39... Nd7 {[%clk 0:00:04.5]} 40.
Rd1+ {[%clk 0:00:42.4]} 40... Ke5 {[%clk 0:00:04.4]} 41. Re8 {[%clk 0:00:39.1]}
41... Nc5 {[%clk 0:00:04]} 42. Qxg7 {[%clk 0:00:38]} 1-0

[Event "Early-Titled-Tuesday-Blitz-February-13-2024"]
[Site "Chess.com"]
[Date "2024.02.13"]
[Round "6"]
[White "carloseduar100"]
[Black "kleopl"]
[Result "0-1"]
[WhiteElo "2348"]
[BlackElo "2530"]
[TimeControl "180+1"]
[EndTime "9:09:54 PST"]
[Termination "kleopl won by resignation"]

1. d4 {[%clk 0:03:00.5]} 1... Nf6 {[%clk 0:02:59]} 2. Bg5 {[%clk 0:03:00.3]}
2... c5 {[%clk 0:02:58.2]} 3. d5 {[%clk 0:02:59.6]} 3... Ne4 {[%clk 0:02:56.4]}
4. h4 {[%clk 0:02:58.7]} 4... Qb6 {[%clk 0:02:55.1]} 5. Nd2 {[%clk 0:02:53.8]}
5... Nxd2 {[%clk 0:02:49]} 6. Bxd2 {[%clk 0:02:52.6]} 6... Qxb2 {[%clk
0:02:47.6]} 7. e4 {[%clk 0:02:52.9]} 7... g6 {[%clk 0:02:37.5]} 8. Rb1 {[%clk
0:02:46.8]} 8... Qe5 {[%clk 0:02:31.7]} 9. Bd3 {[%clk 0:02:41.3]} 9... Bg7
{[%clk 0:02:31.2]} 10. Nf3 {[%clk 0:02:41.2]} 10... Qc7 {[%clk 0:02:30.8]} 11.
Qe2 {[%clk 0:02:39.2]} 11... h5 {[%clk 0:02:26.3]} 12. e5 {[%clk 0:02:39.2]}
12... a6 {[%clk 0:02:18.8]} 13. e6 {[%clk 0:02:39.2]} 13... dxe6 {[%clk
0:02:13.1]} 14. dxe6 {[%clk 0:02:37]} 14... Bxe6 {[%clk 0:02:02.5]} 15. Bxg6
{[%clk 0:02:35.9]} 15... Bg4 {[%clk 0:02:02.6]} 16. Be4 {[%clk 0:02:29.8]} 16...
Nc6 {[%clk 0:02:02.3]} 17. O-O {[%clk 0:01:39.2]} 17... Rd8 {[%clk 0:01:58.5]}
18. Be3 {[%clk 0:01:36.6]} 18... f5 {[%clk 0:01:45.6]} 19. Bxc6+ {[%clk
0:01:15.2]} 19... Qxc6 {[%clk 0:01:46.5]} 20. Rfd1 {[%clk 0:01:08.7]} 20...
Rxd1+ {[%clk 0:01:37]} 21. Rxd1 {[%clk 0:01:06.8]} 21... Bf6 {[%clk 0:01:33.8]}
22. Bg5 {[%clk 0:00:38.7]} 22... Bxg5 {[%clk 0:01:27.4]} 23. hxg5 {[%clk
0:00:39.6]} 23... Rg8 {[%clk 0:01:10.3]} 24. Re1 {[%clk 0:00:36.7]} 24... Rg7
{[%clk 0:01:10.4]} 25. Qe5 {[%clk 0:00:17.2]} 25... Kf8 {[%clk 0:01:06.1]} 26.
Nh4 {[%clk 0:00:14]} 26... Qd6 {[%clk 0:01:00.8]} 27. Nxf5 {[%clk 0:00:12.2]}
27... Qxe5 {[%clk 0:00:58.2]} 28. Rxe5 {[%clk 0:00:12.2]} 28... Rxg5 {[%clk
0:00:57.2]} 29. Rxe7 {[%clk 0:00:04.9]} 29... Bxf5 {[%clk 0:00:53]} 30. Rxb7
{[%clk 0:00:05.5]} 30... Bxc2 {[%clk 0:00:52.7]} 31. Ra7 {[%clk 0:00:05.8]}
31... Bd3 {[%clk 0:00:52.4]} 32. Rc7 {[%clk 0:00:05.9]} 32... c4 {[%clk
0:00:50.4]} 33. Kh2 {[%clk 0:00:06]} 33... Ke8 {[%clk 0:00:48.1]} 34. f4 {[%clk
0:00:05.3]} 34... Rf5 {[%clk 0:00:46.9]} 35. Kg3 {[%clk 0:00:05.4]} 35... Kd8
{[%clk 0:00:44.6]} 36. Rc6 {[%clk 0:00:04.5]} 36... a5 {[%clk 0:00:44.7]} 37.
Kf3 {[%clk 0:00:03.4]} 37... Kd7 {[%clk 0:00:44.5]} 38. Ra6 {[%clk 0:00:02.7]}
38... c3 {[%clk 0:00:44]} 39. Rxa5 {[%clk 0:00:02.7]} 39... Rxa5 {[%clk
0:00:42.2]} 0-1

[Event "Early-Titled-Tuesday-Blitz-February-13-2024"]
[Site "Chess.com"]
[Date "2024.02.13"]
[Round "6"]
[White "Inepton_Fermion"]
[Black "VeraVujovic"]
[Result "1-0"]
[WhiteElo "2410"]
[BlackElo "2237"]
[TimeControl "180+1"]
[EndTime "9:09:54 PST"]
[Termination "Inepton_Fermion won on time"]

1. e4 {[%clk 0:03:00.9]} 1... c6 {[%clk 0:02:58.7]} 2. d4 {[%clk 0:02:57.4]}
2... d5 {[%clk 0:02:53]} 3. exd5 {[%clk 0:02:58.3]} 3... cxd5 {[%clk 0:02:51.4]}
4. c3 {[%clk 0:02:58.9]} 4... Nc6 {[%clk 0:02:51.2]} 5. Nf3 {[%clk 0:02:53.7]}
5... Nf6 {[%clk 0:02:50.2]} 6. h3 {[%clk 0:02:43.9]} 6... Bf5 {[%clk 0:02:39.4]}
7. Bd3 {[%clk 0:02:43]} 7... Bg6 {[%clk 0:02:35]} 8. Bf4 {[%clk 0:02:42.3]} 8...
e6 {[%clk 0:02:34.6]} 9. O-O {[%clk 0:02:42.5]} 9... Bd6 {[%clk 0:02:34.3]} 10.
Bxd6 {[%clk 0:02:42.7]} 10... Qxd6 {[%clk 0:02:35.2]} 11. Re1 {[%clk 0:02:37.8]}
11... O-O {[%clk 0:02:33.1]} 12. Bxg6 {[%clk 0:02:38]} 12... hxg6 {[%clk
0:02:30.8]} 13. a4 {[%clk 0:02:34.6]} 13... Ne4 {[%clk 0:02:29]} 14. Nbd2 {[%clk
0:02:33.4]} 14... f5 {[%clk 0:02:27.5]} 15. Nb3 {[%clk 0:02:25]} 15... g5 {[%clk
0:02:24.4]} 16. Nh2 {[%clk 0:01:42.6]} 16... Nxf2 {[%clk 0:01:58.2]} 17. Kxf2
{[%clk 0:01:36.2]} 17... Qxh2 {[%clk 0:01:55.4]} 18. Rxe6 {[%clk 0:01:36.1]}
18... g4 {[%clk 0:01:33.9]} 19. Qd3 {[%clk 0:01:13.3]} 19... Rae8 {[%clk
0:01:18.8]} 20. Rae1 {[%clk 0:01:11.4]} 20... Rxe6 {[%clk 0:01:00.7]} 21. Rxe6
{[%clk 0:01:12.3]} 21... f4 {[%clk 0:00:33.4]} 22. Ke1 {[%clk 0:00:01.7]} 1-0

[Event "Early-Titled-Tuesday-Blitz-February-13-2024"]
[Site "Chess.com"]
[Date "2024.02.13"]
[Round "6"]
[White "PedroGil25"]
[Black "SlavenPastar"]
[Result "1-0"]
[WhiteElo "2438"]
[BlackElo "2602"]
[TimeControl "180+1"]
[EndTime "9:09:55 PST"]
[Termination "PedroGil25 won by resignation"]

1. e4 {[%clk 0:03:00.9]} 1... b6 {[%clk 0:03:00.9]} 2. d4 {[%clk 0:02:57.8]}
2... Bb7 {[%clk 0:03:01.4]} 3. Bd3 {[%clk 0:02:58.4]} 3... Nf6 {[%clk
0:03:01.9]} 4. Qe2 {[%clk 0:02:57.9]} 4... e6 {[%clk 0:03:02.4]} 5. Nf3 {[%clk
0:02:56.4]} 5... d5 {[%clk 0:03:02.8]} 6. Nbd2 {[%clk 0:02:55.3]} 6... dxe4
{[%clk 0:03:02.4]} 7. Nxe4 {[%clk 0:02:56.2]} 7... Nbd7 {[%clk 0:03:02.8]} 8.
O-O {[%clk 0:02:55.9]} 8... Be7 {[%clk 0:03:03.2]} 9. Re1 {[%clk 0:02:56.5]}
9... O-O {[%clk 0:03:03]} 10. c3 {[%clk 0:02:56.4]} 10... h6 {[%clk 0:03:02.8]}
11. Bf4 {[%clk 0:02:55.8]} 11... Rc8 {[%clk 0:03:02.9]} 12. Rad1 {[%clk
0:02:54.2]} 12... Nxe4 {[%clk 0:02:57]} 13. Bxe4 {[%clk 0:02:52.5]} 13... Bxe4
{[%clk 0:02:56.4]} 14. Qxe4 {[%clk 0:02:53.4]} 14... Nf6 {[%clk 0:02:56.7]} 15.
Qc2 {[%clk 0:02:52.3]} 15... Qd5 {[%clk 0:02:39]} 16. Qa4 {[%clk 0:02:48.9]}
16... b5 {[%clk 0:02:32.8]} 17. Qxa7 {[%clk 0:02:43.5]} 17... Bd6 {[%clk
0:02:31.5]} 18. Bxd6 {[%clk 0:02:40.5]} 18... cxd6 {[%clk 0:02:32.4]} 19. a3
{[%clk 0:02:40.1]} 19... Ra8 {[%clk 0:02:00.9]} 20. Qc7 {[%clk 0:02:23.9]} 20...
Rfc8 {[%clk 0:01:59.1]} 21. Qe7 {[%clk 0:02:23]} 21... Qc6 {[%clk 0:01:31.8]}
22. d5 {[%clk 0:02:17.4]} 22... Nxd5 {[%clk 0:01:13.4]} 23. Qh4 {[%clk
0:02:16.6]} 23... Nf6 {[%clk 0:01:03.7]} 24. Qd4 {[%clk 0:02:14.5]} 24... Rd8
{[%clk 0:00:53.2]} 25. h3 {[%clk 0:02:14.3]} 25... Ra4 {[%clk 0:00:52.8]} 26.
Qd3 {[%clk 0:02:12.9]} 26... Rc4 {[%clk 0:00:38.1]} 27. Nd4 {[%clk 0:02:12.1]}
27... Qc5 {[%clk 0:00:31.7]} 28. Rc1 {[%clk 0:01:36.9]} 28... Rc8 {[%clk
0:00:30.3]} 29. Rcd1 {[%clk 0:00:47.3]} 29... Qb6 {[%clk 0:00:21]} 30. Re3
{[%clk 0:00:47]} 30... Nd5 {[%clk 0:00:18]} 31. Rg3 {[%clk 0:00:46.5]} 31... Nf4
{[%clk 0:00:16.9]} 32. Qf3 {[%clk 0:00:45.4]} 32... g5 {[%clk 0:00:13.1]} 33.
Qxf4 {[%clk 0:00:43.2]} 33... e5 {[%clk 0:00:11.7]} 34. Qf6 {[%clk 0:00:41.7]}
34... exd4 {[%clk 0:00:11]} 35. Qxh6 {[%clk 0:00:42.2]} 35... R4c5 {[%clk
0:00:09.5]} 36. Rxd4 {[%clk 0:00:41.3]} 36... Rf5 {[%clk 0:00:06.9]} 37. Rxg5+
{[%clk 0:00:39.9]} 37... Rxg5 {[%clk 0:00:07.8]} 38. Qxg5+ {[%clk 0:00:40.8]}
38... Kf8 {[%clk 0:00:08.2]} 39. Qh6+ {[%clk 0:00:40.7]} 39... Ke7 {[%clk
0:00:08.3]} 40. Re4+ {[%clk 0:00:39.4]} 40... Kd7 {[%clk 0:00:08.8]} 41. Qf6
{[%clk 0:00:39.6]} 1-0

[Event "Early-Titled-Tuesday-Blitz-February-13-2024"]
[Site "Chess.com"]
[Date "2024.02.13"]
[Round "6"]
[White "Vaibhavraut99"]
[Black "Sychev_Klementy"]
[Result "0-1"]
[WhiteElo "2684"]
[BlackElo "2912"]
[TimeControl "180+1"]
[EndTime "9:09:57 PST"]
[Termination "Sychev_Klementy won by resignation"]

1. Nf3 {[%clk 0:02:54.4]} 1... Nf6 {[%clk 0:02:59.1]} 2. g3 {[%clk 0:02:51.2]}
2... g6 {[%clk 0:02:52.7]} 3. Bg2 {[%clk 0:02:49.2]} 3... Bg7 {[%clk 0:02:53.2]}
4. O-O {[%clk 0:02:49.9]} 4... O-O {[%clk 0:02:53.8]} 5. c4 {[%clk 0:02:49.1]}
5... b6 {[%clk 0:02:49.3]} 6. Nc3 {[%clk 0:02:47.5]} 6... Bb7 {[%clk 0:02:49.3]}
7. d4 {[%clk 0:02:47.3]} 7... Ne4 {[%clk 0:02:49]} 8. Bd2 {[%clk 0:02:34.7]}
8... d6 {[%clk 0:02:41.8]} 9. Qc2 {[%clk 0:02:29.3]} 9... Nxd2 {[%clk
0:02:40.4]} 10. Qxd2 {[%clk 0:02:28.2]} 10... Nd7 {[%clk 0:02:39.8]} 11. a4
{[%clk 0:02:22.8]} 11... a5 {[%clk 0:02:34.7]} 12. Rad1 {[%clk 0:02:11.2]} 12...
e6 {[%clk 0:02:28.5]} 13. e3 {[%clk 0:02:01.4]} 13... Qe7 {[%clk 0:02:25.9]} 14.
Nb5 {[%clk 0:02:00]} 14... Rac8 {[%clk 0:02:23.2]} 15. Na7 {[%clk 0:01:56.1]}
15... Rce8 {[%clk 0:02:22.4]} 16. Nh4 {[%clk 0:01:51.7]} 16... Bxg2 {[%clk
0:02:15.8]} 17. Nxg2 {[%clk 0:01:52.6]} 17... f5 {[%clk 0:02:09.3]} 18. Nb5
{[%clk 0:01:34.2]} 18... Nf6 {[%clk 0:02:06.4]} 19. f3 {[%clk 0:01:29.9]} 19...
g5 {[%clk 0:01:19.7]} 20. Nc3 {[%clk 0:01:24.9]} 20... Qf7 {[%clk 0:00:56.5]}
21. f4 {[%clk 0:01:07.9]} 21... h6 {[%clk 0:00:53.9]} 22. Qd3 {[%clk 0:00:50.3]}
22... Qh5 {[%clk 0:00:52.7]} 23. Rd2 {[%clk 0:00:20.5]} 23... Rf7 {[%clk
0:00:45.9]} 24. Ne1 {[%clk 0:00:16.2]} 24... Kh8 {[%clk 0:00:29.4]} 25. Nf3
{[%clk 0:00:16]} 25... Rg8 {[%clk 0:00:29.5]} 26. Kh1 {[%clk 0:00:15.6]} 26...
Bf8 {[%clk 0:00:29.7]} 27. Qe2 {[%clk 0:00:14.4]} 27... gxf4 {[%clk 0:00:27.8]}
28. gxf4 {[%clk 0:00:07.3]} 28... Rfg7 {[%clk 0:00:27.8]} 29. Ne1 {[%clk
0:00:03.5]} 29... Qh3 {[%clk 0:00:25]} 30. Rc2 {[%clk 0:00:01.7]} 30... Ng4
{[%clk 0:00:21.3]} 31. Nf3 {[%clk 0:00:01.9]} 31... Nxe3 {[%clk 0:00:21.4]} 32.
Qxe3 {[%clk 0:00:02]} 32... Qxf1+ {[%clk 0:00:21.4]} 0-1